Workbook

Sheet 정산내역
A1: 2023학년도 정기연주회(클래식전공) 정산내역
A3: 1. 징수액 | C3: 6400000 | D3: 원
A4: 2. 수납액 | C4: =C3-C5 -> 6400000 | D4: 원
A5: 3. 미납액 | C5: 0 | D5: 원 | E5: ※ 불납결손 처리 없음.
A6: 4. 지출액 | C6: 4040000 | D6: 원
A7: 5. 과목경정요청금액 | C7: 0 | D7: 원
A9: * 최종수납액 | C9: =C4 -> 6400000 | D9: 원
A10: * 최종지출액 | C10: 4040000 | D10: 원
A11: * 최종잔액 | C11: =C9-C10 -> 2360000 | D11: 원
A13: <지출내역>
A15: 순번 | B15: 항목 | E15: 예산 | F15: 지출 | G15: 잔액 | H15: 비고
A16: 1 | B16: 영상 | E16: 2700000 | F16: 2420000 | G16: =E16-F16 -> 280000 | I16: =6875000 -> 6875000
A17: 2 | B17: 객원비 | E17: 1000000 | F17: 0 | G17: =E17-F17 -> 1000000 | I17: 4350000
A18: 3 | B18: 지도비 | E18: 2700000 | F18: 1620000 | G18: =E18-F18 -> 1080000 | I18: 3300000
A19: 합계 | E19: =SUM(E16:E18) -> 6400000 | F19: =SUM(F16:F18) -> 4040000 | G19: =SUM(G16:G18) -> 2360000
I20: =SUM(I16:I19) -> 14525000

Sheet 정산내역 (2)
A1: 2023년도 정기연주회(실용음악전공) 정산내역
A3: 1. 징수액 | C3: 3750000 | D3: 원
A4: 2. 수납액 | C4: =C3-C5 -> 3750000 | D4: 원
A5: 3. 미납액 | C5: 0 | D5: 원 | E5: ※ 불납결손 처리 없음.
A6: 4. 지출액 | C6: 3720000 | D6: 원
A7: 5. 과목경정요청금액 | C7: 0 | D7: 원
A9: * 최종수납액 | C9: =C4 -> 3750000 | D9: 원
A10: * 최종지출액 | C10: 3720000 | D10: 원
A11: * 최종잔액 | C11: =C9-C10 -> 30000 | D11: 원
A13: <지출내역>
A15: 순번 | B15: 항목 | E15: 예산 | F15: 지출 | G15: 잔액 | H15: 비고
A16: 1 | B16: 편곡비 | E16: 1000000 | F16: 1000000 | G16: =E16-F16 -> 0 | I16: =6875000 -> 6875000
A17: 3 | B17: 지도비 | E17: 2750000 | F17: 2720000 | G17: =E17-F17 -> 30000 | I17: 3300000
A18: 합계 | E18: =SUM(E16:E17) -> 3750000 | F18: =SUM(F16:F17) -> 3720000 | G18: =SUM(G16:G17) -> 30000
I19: =SUM(I16:I18) -> 10175000
